[Event "GER-ch Youth-U12 2024"]
[Site "Willingen"]
[Date "2024.05.22"]
[Round "6"]
[White "Gersemann, Karl"]
[Black "Bundan, Edward"]
[Result "0-1"]
[ECO "B30"]
[WhiteElo "1729"]
[BlackElo "1897"]
[Annotator "NA RC"]
[PlyCount "90"]
[EventDate "2022.06.05"]
[EventType "swiss"]
[EventRounds "9"]
[EventCountry "GER"]
[SourceTitle "playchess.com"]
[Source "ChessBase"]
[SourceQuality "1"]
[TimeControl "40/4500+30:900+30"]

1. e4 {[%emt 0:00:00]} c5 {[%emt 0:00:00]} 2. Nf3 {[%emt 0:00:00]} Nc6 {[%emt 0:00:00]} 3. Bb5 {[%emt 0:00:00]} Na5 {[%emt 0:00:00]} 4. Be2 {[%emt 0:00:00]} a6 {[%emt 0:00:00]} 5. c4 {[%emt 0:00:00]} e6 {[%emt 0:00:00]} 6. Nc3 {[%emt 0:00:00]} Qc7 {[%emt 0:00:00]} 7. d4 {[%emt 0:00:12]} cxd4 {[%emt 0:00:00]} 8. Qxd4 {[%emt 0:00:06]} Nc6 {[%emt 0:00:00]} 9. Qd3 {[%emt 0:06:24]} Nf6 {[%emt 0:00:00]} 10. h3 {[%emt 0:04:07]} Be7 {[%emt 0:00:00]} 11. Be3 {[%emt 0:01:58]} O-O {[%emt 0:00:00]} 12. O-O {[%emt 0:01:27]} d6 {[%emt 0:00:00]} 13. Rfd1 {[%emt 0:07:33]} b6 {[%emt 0:00:00]} 14. a3 {[%emt 0:10:45]} Nd7 {[%emt 0:02:39]} 15. Qc2 {[%emt 0:10:46]} Nce5 {[%emt 0:02:28]} 16. Nd4 {[%emt 0:10:57]} Bb7 {[%emt 0:03:56]} 17. Rac1 {[%emt 0:03:58]} Rac8 {[%emt 0:05:07]} 18. f4 {[%emt 0:05:44]} Nc6 {[%emt 0:00:21]} 19. f5 {[%emt 0:01:00]} Nxd4 {[%emt 0:00:19]} 20. Bxd4 {[%emt 0:00:21]} Bg5 {[%emt 0:03:48]} 21. Rb1 {[%emt 0:00:36]} Rfe8 {[%emt 0:12:09]} 22. Qd3 {[%emt 0:04:37]} Ne5 {[%emt 0:07:52]} 23. Bxe5 {[%emt 0:00:45]} dxe5 {[%emt 0:00:13]} 24. fxe6 {[%emt 0:01:14]} fxe6 {[%emt 0:00:20]} 25. Qd6 {[%emt 0:02:05]} Be3+ {[%emt 0:01:05]} 26. Kh1 {[%emt 0:00:13]} Bd4 {[%emt 0:00:14]} 27. Qxc7 {[%emt 0:00:28]} Rxc7 {[%emt 0:00:00]} 28. Bd3 {[%emt 0:01:22]} Rd8 {[%emt 0:03:10]} 29. Ne2 {[%emt 0:01:50]} Rcd7 {[%emt 0:00:47]} 30. b4 {[%emt 0:02:38]} Be3 {[%emt 0:02:36]} 31. Bc2 {[%emt 0:01:12]} Rxd1+ {[%emt 0:00:49]} 32. Rxd1 {[%emt 0:00:05]} Rxd1+ {[%emt 0:00:10]} 33. Bxd1 {[%emt 0:00:05]} Bxe4 {[%emt 0:00:14]} 34. Nc3 {[%emt 0:00:47]} Bd3 {[%emt 0:00:34]} 35. Be2 {[%emt 0:00:12]} Bc2 {[%emt 0:02:15]} 36. c5 {[%emt 0:02:35]} bxc5 {[%emt 0:01:15]} 37. Bxa6 {[%emt 0:00:10]} cxb4 {[%emt 0:00:17]} 38. axb4 {[%emt 0:00:11]} Bd2 {[%emt 0:00:27]} 39. Ne2 {[%emt 0:00:36]} Bxb4 {[%emt 0:01:11]} 40. Bb7 {[%emt 0:00:38]} Kf7 {[%emt 0:00:58]} 41. g4 {[%emt 0:16:00]} h6 {[%emt 0:16:05]} 42. Ng3 {[%emt 0:00:40]} Be1 {[%emt 0:00:39]} 43. Ne4 {[%emt 0:01:13]} Bb3 {[%emt 0:01:01]} 44. Kg2 {[%emt 0:00:31]} Bd5 {[%emt 0:01:49]} 45. Kf1 {[%emt 0:00:04]} Bb4 {[%emt 0:00:41]} 0-1

[Event "GER-ch Youth-U12 2024"]
[Site "Willingen"]
[Date "2024.05.22"]
[Round "6"]
[White "Hepp, Daniel"]
[Black "Balashvili, Amiran"]
[Result "1/2-1/2"]
[ECO "A29"]
[WhiteElo "1721"]
[BlackElo "1682"]
[Annotator "NA RC"]
[PlyCount "92"]
[EventDate "2022.06.05"]
[EventType "swiss"]
[EventRounds "9"]
[EventCountry "GER"]
[SourceTitle "playchess.com"]
[Source "ChessBase"]
[SourceQuality "1"]
[TimeControl "40/4500+30:900+30"]

1. c4 {[%emt 0:00:00]} e5 {[%emt 0:00:00]} 2. Nc3 {[%emt 0:00:00]} Nf6 {[%emt 0:00:00]} 3. Nf3 {[%emt 0:00:00]} Nc6 {[%emt 0:00:00]} 4. g3 {[%emt 0:00:00]} d5 {[%emt 0:00:00]} 5. cxd5 {[%emt 0:00:00]} Nxd5 {[%emt 0:00:00]} 6. Bg2 {[%emt 0:00:00]} Nb6 {[%emt 0:00:00]} 7. O-O {[%emt 0:00:00]} Be7 {[%emt 0:00:00]} 8. a3 {[%emt 0:00:00]} O-O {[%emt 0:00:00]} 9. b4 {[%emt 0:00:00]} a6 {[%emt 0:00:00]} 10. Bb2 {[%emt 0:00:00]} Re8 {[%emt 0:00:00]} 11. d3 {[%emt 0:00:00]} Bf8 {[%emt 0:00:00]} 12. Rc1 {[%emt 0:00:45]} g6 {[%emt 0:00:00]} 13. Ne4 {[%emt 0:03:05]} Bg7 {[%emt 0:05:37]} 14. Ba1 {[%emt 0:04:13]} Nd4 {[%emt 0:11:11]} 15. Nxd4 {[%emt 0:16:46]} exd4 {[%emt 0:00:05]} 16. h3 {[%emt 0:00:59]} c6 {[%emt 0:04:05]} 17. Re1 {[%emt 0:02:44]} Bd7 {[%emt 0:07:44]} 18. Nd6 {[%emt 0:06:27]} Re7 {[%emt 0:17:28]} 19. Nxb7 {[%emt 0:00:56]} Qc7 {[%emt 0:01:48]} 20. Na5 {[%emt 0:04:22]} Re6 {[%emt 0:00:24]} 21. Qb3 {[%emt 0:05:45]} Rc8 {[%emt 0:03:22]} 22. Nc4 {[%emt 0:05:22]} c5 {[%emt 0:05:52]} 23. Nb2 {[%emt 0:05:45]} Qd6 {[%emt 0:01:50]} 24. Nc4 {[%emt 0:03:26]} Qb8 {[%emt 0:04:29]} 25. Rb1 {[%emt 0:06:17]} Nxc4 {[%emt 0:03:10]} 26. dxc4 {[%emt 0:01:29]} Rb6 {[%emt 0:00:35]} 27. Red1 {[%emt 0:02:34]} Be6 {[%emt 0:01:34]} 28. Rdc1 {[%emt 0:00:59]} Bf5 {[%emt 0:06:49]} 29. Rb2 {[%emt 0:02:42]} d3 {[%emt 0:00:05]} 30. Rd2 {[%emt 0:01:01]} Bxa1 {[%emt 0:00:37]} 31. Rxa1 {[%emt 0:00:45]} dxe2 {[%emt 0:00:13]} 32. Rxe2 {[%emt 0:00:48]} cxb4 {[%emt 0:00:06]} 33. axb4 {[%emt 0:00:48]} Rxb4 {[%emt 0:00:07]} 34. Qa3 {[%emt 0:02:07]} Rbxc4 {[%emt 0:03:34]} 35. Qxa6 {[%emt 0:02:42]} Bd3 {[%emt 0:04:46]} 36. Ree1 {[%emt 0:00:18]} Bf5 {[%emt 0:02:12]} 37. Re7 {[%emt 0:07:01]} Rc1+ {[%emt 0:00:52]} 38. Rxc1 {[%emt 0:00:43]} Rxc1+ {[%emt 0:00:04]} 39. Kh2 {[%emt 0:00:11]} Rc7 {[%emt 0:00:20]} 40. Qd6 {[%emt 0:00:49]} Rc8 {[%emt 0:00:37]} 41. Qf6 {[%emt 0:16:30]} Be6 {[%emt 0:15:56]} 42. Rxe6 {[%emt 0:00:00]} fxe6 {[%emt 0:00:00]} 43. Qxe6+ {[%emt 0:00:00]} Kg7 {[%emt 0:00:00]} 44. Qe7+ {[%emt 0:00:00]} Kh6 {[%emt 0:00:00]} 45. Qh4+ {[%emt 0:00:00]} Kg7 {[%emt 0:00:00]} 46. Qe7+ {[%emt 0:00:00]} Kh6 {[%emt 0:00:00]} 1/2-1/2

[Event "GER-ch Youth-U12 2024"]
[Site "Willingen"]
[Date "2024.05.22"]
[Round "6"]
[White "Sasikumar Anitha, Sarvesh"]
[Black "Vinogradov, Ilia"]
[Result "1-0"]
[ECO "C45"]
[WhiteElo "1703"]
[BlackElo "1723"]
[Annotator "NA RC"]
[PlyCount "81"]
[EventDate "2022.06.05"]
[EventType "swiss"]
[EventRounds "9"]
[EventCountry "GER"]
[SourceTitle "playchess.com"]
[Source "ChessBase"]
[SourceQuality "1"]
[TimeControl "40/4500+30:900+30"]

1. e4 {[%emt 0:00:00]} e5 {[%emt 0:00:00]} 2. Nf3 {[%emt 0:00:00]} Nc6 {[%emt 0:00:00]} 3. d4 {[%emt 0:00:00]} exd4 {[%emt 0:00:00]} 4. Nxd4 {[%emt 0:00:00]} Bc5 {[%emt 0:00:00]} 5. Be3 {[%emt 0:00:00]} Qf6 {[%emt 0:00:00]} 6. c3 {[%emt 0:00:00]} Nge7 {[%emt 0:00:00]} 7. Bc4 {[%emt 0:00:00]} Ne5 {[%emt 0:00:00]} 8. Be2 {[%emt 0:00:00]} Qg6 {[%emt 0:00:00]} 9. O-O {[%emt 0:00:00]} d6 {[%emt 0:00:00]} 10. f3 {[%emt 0:00:00]} Bd7 {[%emt 0:00:00]} 11. Qd2 {[%emt 0:00:00]} N5c6 {[%emt 0:04:00]} 12. Nb5 {[%emt 0:08:06]} O-O-O {[%emt 0:04:16]} 13. b4 {[%emt 0:00:29]} Bxe3+ {[%emt 0:02:44]} 14. Qxe3 {[%emt 0:00:39]} Kb8 {[%emt 0:01:41]} 15. a4 {[%emt 0:02:01]} Rde8 {[%emt 0:10:24]} 16. Qf2 {[%emt 0:11:06]} h5 {[%emt 0:04:36]} 17. Nd4 {[%emt 0:04:02]} Nxd4 {[%emt 0:01:32]} 18. cxd4 {[%emt 0:00:31]} f5 {[%emt 0:02:11]} 19. Nc3 {[%emt 0:05:03]} f4 {[%emt 0:04:37]} 20. Qh4 {[%emt 0:02:59]} Rhf8 {[%emt 0:02:16]} 21. b5 {[%emt 0:05:25]} Qh6 {[%emt 0:05:07]} 22. a5 {[%emt 0:01:45]} g5 {[%emt 0:00:28]} 23. Qf2 {[%emt 0:00:11]} g4 {[%emt 0:01:57]} 24. b6 {[%emt 0:00:41]} cxb6 {[%emt 0:01:18]} 25. axb6 {[%emt 0:00:08]} a6 {[%emt 0:00:32]} 26. Bxa6 {[%emt 0:03:49]} bxa6 {[%emt 0:03:08]} 27. Qe2 {[%emt 0:01:13]} Bc8 {[%emt 0:01:32]} 28. b7 {[%emt 0:00:19]} Bxb7 {[%emt 0:01:11]} 29. Rfb1 {[%emt 0:00:10]} d5 {[%emt 0:02:34]} 30. Rxa6 {[%emt 0:00:28]} Qg7 {[%emt 0:14:57]} 31. Rab6 {[%emt 0:03:24]} Nc8 {[%emt 0:02:43]} 32. Rxb7+ {[%emt 0:00:36]} Qxb7 {[%emt 0:00:08]} 33. Rxb7+ {[%emt 0:00:04]} Kxb7 {[%emt 0:00:08]} 34. Nxd5 {[%emt 0:00:31]} Nd6 {[%emt 0:05:02]} 35. Qb2+ {[%emt 0:00:17]} Kc6 {[%emt 0:01:38]} 36. Qb6+ {[%emt 0:01:22]} Kd7 {[%emt 0:00:05]} 37. e5 {[%emt 0:00:23]} Nc8 {[%emt 0:01:17]} 38. Nf6+ {[%emt 0:01:25]} Ke7 {[%emt 0:01:12]} 39. Qc7+ {[%emt 0:00:17]} Ke6 {[%emt 0:00:09]} 40. d5+ {[%emt 0:00:32]} Kf5 {[%emt 0:00:11]} 41. Nxe8 {[%emt 0:15:14]} 1-0

[Event "GER-ch Youth-U12 2024"]
[Site "Willingen"]
[Date "2024.05.22"]
[Round "6"]
[White "Andersen, Jonathan"]
[Black "Sun, Christopher"]
[Result "1-0"]
[ECO "C00"]
[WhiteElo "1693"]
[BlackElo "1714"]
[Annotator "NA RC"]
[PlyCount "35"]
[EventDate "2022.06.05"]
[EventType "swiss"]
[EventRounds "9"]
[EventCountry "GER"]
[SourceTitle "playchess.com"]
[Source "ChessBase"]
[SourceQuality "1"]
[TimeControl "40/4500+30:900+30"]

1. e4 {[%emt 0:00:00]} e6 {[%emt 0:00:00]} 2. b3 {[%emt 0:00:00]} d5 {[%emt 0:00:00]} 3. Bb2 {[%emt 0:00:00]} dxe4 {[%emt 0:00:00]} 4. Nc3 {[%emt 0:00:00]} Nf6 {[%emt 0:00:00]} 5. Qe2 {[%emt 0:00:00]} Nc6 {[%emt 0:00:00]} 6. Nxe4 {[%emt 0:00:00]} Be7 {[%emt 0:00:00]} 7. Nf3 {[%emt 0:00:00]} b6 {[%emt 0:00:00]} 8. O-O-O {[%emt 0:00:00]} Bb7 {[%emt 0:01:38]} 9. d4 {[%emt 0:00:00]} Qd7 {[%emt 0:08:53]} 10. Nxf6+ {[%emt 0:00:00]} Bxf6 {[%emt 0:00:27]} 11. d5 {[%emt 0:00:00]} Bxb2+ {[%emt 0:08:19]} 12. Kxb2 {[%emt 0:00:00]} Ne7 {[%emt 0:00:56]} 13. dxe6 {[%emt 0:00:00]} Qxe6 {[%emt 0:00:13]} 14. Qxe6 {[%emt 0:00:00]} fxe6 {[%emt 0:00:09]} 15. Ng5 {[%emt 0:00:23]} e5 {[%emt 0:03:10]} 16. Bc4 {[%emt 0:03:53]} Bc8 {[%emt 0:09:21]} 17. Nf7 {[%emt 0:00:33]} Rf8 {[%emt 0:00:20]} 18. Rd8# {[%emt 0:01:04]} 1-0

[Event "GER-ch Youth-U12 2024"]
[Site "Willingen"]
[Date "2024.05.22"]
[Round "6"]
[White "Vu Hoang Bach"]
[Black "Schulz, Robin"]
[Result "1/2-1/2"]
[ECO "D34"]
[WhiteElo "1677"]
[BlackElo "1730"]
[Annotator "NA RC"]
[PlyCount "185"]
[EventDate "2022.06.05"]
[EventType "swiss"]
[EventRounds "9"]
[EventCountry "GER"]
[SourceTitle "playchess.com"]
[Source "ChessBase"]
[SourceQuality "1"]
[TimeControl "40/4500+30:900+30"]

1. c4 {[%emt 0:00:00]} e6 {[%emt 0:00:00]} 2. Nf3 {[%emt 0:00:00]} d5 {[%emt 0:00:00]} 3. g3 {[%emt 0:00:00]} Nf6 {[%emt 0:00:00]} 4. Bg2 {[%emt 0:00:00]} c5 {[%emt 0:00:00]} 5. cxd5 {[%emt 0:00:00]} exd5 {[%emt 0:00:00]} 6. d4 {[%emt 0:00:00]} Nc6 {[%emt 0:00:00]} 7. Nc3 {[%emt 0:00:00]} Be7 {[%emt 0:00:00]} 8. O-O {[%emt 0:00:00]} O-O {[%emt 0:00:00]} 9. Bf4 {[%emt 0:00:00]} Bf5 {[%emt 0:00:00]} 10. Rc1 {[%emt 0:00:00]} c4 {[%emt 0:00:00]} 11. b3 {[%emt 0:00:00]} Ba3 {[%emt 0:00:00]} 12. bxc4 {[%emt 0:00:00]} Bxc1 {[%emt 0:00:00]} 13. Qxc1 {[%emt 0:00:00]} dxc4 {[%emt 0:00:00]} 14. Nb5 {[%emt 0:00:00]} Nd5 {[%emt 0:00:00]} 15. Qxc4 {[%emt 0:00:36]} Nxf4 {[%emt 0:00:00]} 16. gxf4 {[%emt 0:00:04]} Rc8 {[%emt 0:00:08]} 17. Qa4 {[%emt 0:01:26]} a6 {[%emt 0:00:21]} 18. Nc3 {[%emt 0:00:45]} Qf6 {[%emt 0:04:39]} 19. Nd5 {[%emt 0:01:37]} Qd6 {[%emt 0:00:10]} 20. Nb6 {[%emt 0:00:12]} Rcd8 {[%emt 0:01:35]} 21. e3 {[%emt 0:01:24]} Bd3 {[%emt 0:06:33]} 22. Rc1 {[%emt 0:02:48]} f5 {[%emt 0:05:40]} 23. Qb3+ {[%emt 0:00:14]} Kh8 {[%emt 0:00:34]} 24. Qxd3 {[%emt 0:00:06]} Nb4 {[%emt 0:00:12]} 25. Qb3 {[%emt 0:00:07]} Qxb6 {[%emt 0:00:23]} 26. Rb1 {[%emt 0:00:04]} Rc8 {[%emt 0:03:28]} 27. Bf1 {[%emt 0:00:46]} Qg6+ {[%emt 0:02:06]} 28. Bg2 {[%emt 0:00:32]} a5 {[%emt 0:01:15]} 29. Ne5 {[%emt 0:00:20]} Qe8 {[%emt 0:05:48]} 30. Bxb7 {[%emt 0:01:04]} Rb8 {[%emt 0:01:43]} 31. Bf3 {[%emt 0:00:13]} Nc6 {[%emt 0:02:26]} 32. Bxc6 {[%emt 0:04:25]} Rxb3 {[%emt 0:00:08]} 33. Rxb3 {[%emt 0:00:01]} Qh5 {[%emt 0:16:43]} 34. Bf3 {[%emt 0:05:01]} Qe8 {[%emt 0:00:10]} 35. Rd3 {[%emt 0:05:38]} Qe6 {[%emt 0:07:17]} 36. d5 {[%emt 0:00:31]} Qd6 {[%emt 0:00:20]} 37. Nc4 {[%emt 0:01:19]} Qc5 {[%emt 0:16:27]} 38. Rd4 {[%emt 0:00:22]} g5 {[%emt 0:00:54]} 39. h3 {[%emt 0:13:51]} gxf4 {[%emt 0:07:14]} 40. Rxf4 {[%emt 0:00:06]} Qb4 {[%emt 0:00:46]} 41. Kh2 {[%emt 0:15:35]} Rc8 {[%emt 0:22:43]} 42. Ne5 {[%emt 0:13:35]} Qb2 {[%emt 0:00:00]} 43. Nf7+ {[%emt 0:00:00]} Kg7 {[%emt 0:00:00]} 44. Bh5 {[%emt 0:00:00]} Rc7 {[%emt 0:00:00]} 45. Nd6 {[%emt 0:00:00]} Qe5 {[%emt 0:00:00]} 46. Nxf5+ {[%emt 0:00:00]} Kh8 {[%emt 0:00:00]} 47. d6 {[%emt 0:00:00]} Rd7 {[%emt 0:00:00]} 48. Bg4 {[%emt 0:00:00]} Rxd6 {[%emt 0:00:00]} 49. Nxd6 {[%emt 0:00:00]} Qxd6 {[%emt 0:00:00]} 50. a4 {[%emt 0:00:00]} Kg7 {[%emt 0:00:00]} 51. Kg2 {[%emt 0:00:00]} Qg6 {[%emt 0:00:00]} 52. Kf3 {[%emt 0:00:00]} Qc6+ {[%emt 0:00:00]} 53. Re4 {[%emt 0:00:00]} Qf6+ {[%emt 0:00:00]} 54. Kg2 {[%emt 0:00:00]} Qc6 {[%emt 0:00:00]} 55. Bf3 {[%emt 0:00:00]} Qd7 {[%emt 0:00:00]} 56. Rd4 {[%emt 0:00:00]} Qe6 {[%emt 0:00:00]} 57. Bd5 {[%emt 0:00:00]} Qe5 {[%emt 0:00:00]} 58. Bf3 {[%emt 0:00:00]} Qc5 {[%emt 0:01:36]} 59. Rg4+ {[%emt 0:00:00]} Kf6 {[%emt 0:00:40]} 60. Be4 {[%emt 0:00:00]} h5 {[%emt 0:00:54]} 61. Rf4+ {[%emt 0:00:00]} Ke6 {[%emt 0:01:20]} 62. h4 {[%emt 0:00:00]} Qe7 {[%emt 0:02:03]} 63. Bf5+ {[%emt 0:00:00]} Kd6 {[%emt 0:00:50]} 64. Kf3 {[%emt 0:00:00]} Qb7+ {[%emt 0:01:13]} 65. Re4 {[%emt 0:00:00]} Kc5 {[%emt 0:01:26]} 66. Kf4 {[%emt 0:00:00]} Qg7 {[%emt 0:00:45]} 67. Rd4 {[%emt 0:00:00]} Qf6 {[%emt 0:00:39]} 68. Re4 {[%emt 0:00:00]} Qxh4+ {[%emt 0:00:21]} 69. Kf3 {[%emt 0:00:00]} Qf6 {[%emt 0:00:24]} 70. Rf4 {[%emt 0:00:00]} Qd6 {[%emt 0:01:49]} 71. Be4 {[%emt 0:00:00]} Qd1+ {[%emt 0:00:44]} 72. Kg3 {[%emt 0:00:00]} Qxa4 {[%emt 0:00:34]} 73. Bg6 {[%emt 0:00:00]} Qd1 {[%emt 0:00:22]} 74. Rf5+ {[%emt 0:00:00]} Kb4 {[%emt 0:00:01]} 75. Bxh5 {[%emt 0:00:00]} Qg1+ {[%emt 0:00:06]} 76. Kf3 {[%emt 0:00:00]} a4 {[%emt 0:00:09]} 77. Bf7 {[%emt 0:00:00]} Qd1+ {[%emt 0:00:36]} 78. Kf4 {[%emt 0:00:00]} a3 {[%emt 0:00:10]} 79. f3 {[%emt 0:00:00]} Qc2 {[%emt 0:00:34]} 80. e4 {[%emt 0:00:00]} a2 {[%emt 0:00:39]} 81. Bxa2 {[%emt 0:00:00]} Qxa2 {[%emt 0:00:03]} 82. Rd5 {[%emt 0:00:00]} Kc4 {[%emt 0:00:47]} 83. Kf5 {[%emt 0:00:00]} Qa7 {[%emt 0:01:17]} 84. Kf4 {[%emt 0:00:00]} Qg7 {[%emt 0:00:56]} 85. Ke3 {[%emt 0:00:00]} Qg6 {[%emt 0:00:46]} 86. Rd4+ {[%emt 0:00:00]} Kc5 {[%emt 0:00:08]} 87. Rd5+ {[%emt 0:00:00]} Kc6 {[%emt 0:00:08]} 88. Rf5 {[%emt 0:00:00]} Kd6 {[%emt 0:00:29]} 89. f4 {[%emt 0:00:00]} Qg3+ {[%emt 0:00:13]} 90. Ke2 {[%emt 0:00:00]} Qc3 {[%emt 0:01:10]} 91. Re5 {[%emt 0:00:00]} Qg3 {[%emt 0:01:01]} 92. Rf5 {[%emt 0:00:00]} Qh3 {[%emt 0:00:53]} 93. Kf2 {[%emt 0:00:12]} 1/2-1/2

[Event "GER-ch Youth-U12 2024"]
[Site "Willingen"]
[Date "2024.05.22"]
[Round "6"]
[White "Obermair, Hannes"]
[Black "Hellriegel, Hannes"]
[Result "1/2-1/2"]
[ECO "A23"]
[WhiteElo "1668"]
[BlackElo "1701"]
[Annotator "NA RC"]
[PlyCount "66"]
[EventDate "2022.06.05"]
[EventType "swiss"]
[EventRounds "9"]
[EventCountry "GER"]
[SourceTitle "playchess.com"]
[Source "ChessBase"]
[SourceQuality "1"]
[TimeControl "40/4500+30:900+30"]

1. c4 {[%emt 0:00:00]} e5 {[%emt 0:00:00]} 2. Nc3 {[%emt 0:00:00]} Nf6 {[%emt 0:00:17]} 3. g3 {[%emt 0:00:00]} c6 {[%emt 0:00:00]} 4. d4 {[%emt 0:00:00]} e4 {[%emt 0:00:00]} 5. Bg2 {[%emt 0:00:00]} d5 {[%emt 0:00:00]} 6. cxd5 {[%emt 0:00:00]} cxd5 {[%emt 0:00:00]} 7. Bf4 {[%emt 0:00:00]} a6 {[%emt 0:00:00]} 8. e3 {[%emt 0:00:00]} Nc6 {[%emt 0:00:00]} 9. Bg5 {[%emt 0:00:00]} Be7 {[%emt 0:00:54]} 10. Nge2 {[%emt 0:00:00]} h6 {[%emt 0:12:39]} 11. Bxf6 {[%emt 0:00:00]} Bxf6 {[%emt 0:00:22]} 12. Qb3 {[%emt 0:00:00]} Be6 {[%emt 0:09:30]} 13. Qxb7 {[%emt 0:07:21]} Na5 {[%emt 0:00:57]} 14. Qb4 {[%emt 0:01:19]} Rb8 {[%emt 0:06:29]} 15. Qa4+ {[%emt 0:01:40]} Kf8 {[%emt 0:01:13]} 16. Qc2 {[%emt 0:00:53]} Nc4 {[%emt 0:04:45]} 17. b3 {[%emt 0:02:45]} Nb6 {[%emt 0:02:42]} 18. O-O {[%emt 0:01:30]} h5 {[%emt 0:06:11]} 19. h3 {[%emt 0:03:50]} g5 {[%emt 0:10:41]} 20. Kh2 {[%emt 0:17:27]} Qd6 {[%emt 0:04:29]} 21. Rh1 {[%emt 0:17:30]} Ke7 {[%emt 0:05:46]} 22. Kg1 {[%emt 0:05:50]} Rbg8 {[%emt 0:02:06]} 23. Kf1 {[%emt 0:02:36]} Rg6 {[%emt 0:05:18]} 24. Rc1 {[%emt 0:02:22]} Rc8 {[%emt 0:02:24]} 25. Qb2 {[%emt 0:02:16]} Rb8 {[%emt 0:02:27]} 26. Ke1 {[%emt 0:02:33]} Bh8 {[%emt 0:01:22]} 27. a3 {[%emt 0:02:02]} Nc4 {[%emt 0:01:56]} 28. Qa2 {[%emt 0:02:42]} Na5 {[%emt 0:01:28]} 29. b4 {[%emt 0:01:42]} Nc4 {[%emt 0:00:26]} 30. Na4 {[%emt 0:00:48]} f5 {[%emt 0:01:44]} 31. h4 {[%emt 0:02:01]} g4 {[%emt 0:00:48]} 32. Nc5 {[%emt 0:01:23]} Bf7 {[%emt 0:01:45]} 33. Nf4 {[%emt 0:01:02]} Rgg8 {[%emt 0:00:45]} 1/2-1/2

[Event "GER-ch Youth-U12 2024"]
[Site "Willingen"]
[Date "2024.05.22"]
[Round "6"]
[White "Prashanthakumar, Arnesh"]
[Black "Gao, Chenzhuo"]
[Result "1/2-1/2"]
[ECO "C11"]
[WhiteElo "1634"]
[BlackElo "1580"]
[Annotator "NA"]
[PlyCount "58"]
[EventDate "2022.06.05"]
[EventType "swiss"]
[EventRounds "9"]
[EventCountry "GER"]
[SourceTitle "playchess.com"]
[Source "ChessBase"]
[SourceQuality "1"]
[TimeControl "40/4500+30:900+30"]

1. e4 {[%emt 0:00:00]} e6 {[%emt 0:00:00]} 2. d4 {[%emt 0:00:00]} d5 {[%emt 0:00:00]} 3. Nc3 {[%emt 0:00:00]} Nf6 {[%emt 0:00:00]} 4. e5 {[%emt 0:00:00]} Nfd7 {[%emt 0:00:00]} 5. f4 {[%emt 0:00:00]} c5 {[%emt 0:00:00]} 6. Nf3 {[%emt 0:00:00]} Nc6 {[%emt 0:00:00]} 7. Be3 {[%emt 0:00:00]} a6 {[%emt 0:00:00]} 8. a4 {[%emt 0:00:00]} cxd4 {[%emt 0:00:00]} 9. Bxd4 {[%emt 0:00:00]} Nxd4 {[%emt 0:00:00]} 10. Nxd4 {[%emt 0:00:00]} Qb6 {[%emt 0:00:00]} 11. Nb3 {[%emt 0:00:00]} Bb4 {[%emt 0:06:32]} 12. Be2 {[%emt 0:03:16]} O-O {[%emt 0:01:58]} 13. a5 {[%emt 0:03:20]} Qc7 {[%emt 0:08:54]} 14. Qd2 {[%emt 0:04:50]} Nc5 {[%emt 0:00:57]} 15. Qd4 {[%emt 0:10:24]} Nxb3 {[%emt 0:02:59]} 16. cxb3 {[%emt 0:01:07]} Bxa5 {[%emt 0:00:36]} 17. Rxa5 {[%emt 0:02:06]} Qxa5 {[%emt 0:02:56]} 18. O-O {[%emt 0:01:15]} b5 {[%emt 0:01:01]} 19. Bg4 {[%emt 0:04:06]} g6 {[%emt 0:05:06]} 20. Bh3 {[%emt 0:03:02]} h5 {[%emt 0:02:09]} 21. Nd1 {[%emt 0:01:28]} Rb8 {[%emt 0:02:25]} 22. Kh1 {[%emt 0:02:15]} Qb6 {[%emt 0:00:30]} 23. Qd3 {[%emt 0:00:55]} a5 {[%emt 0:01:34]} 24. Nf2 {[%emt 0:00:46]} Ba6 {[%emt 0:00:24]} 25. Qd2 {[%emt 0:02:12]} Rfd8 {[%emt 0:01:38]} 26. g4 {[%emt 0:00:40]} hxg4 {[%emt 0:19:21]} 27. Nxg4 {[%emt 0:01:31]} Kf8 {[%emt 0:02:15]} 28. Nf6 {[%emt 0:05:16]} Ke7 {[%emt 0:00:32]} 29. f5 {[%emt 0:01:44]} exf5 {[%emt 0:08:24]} 1/2-1/2